fUST/lending_fUST_20241106
["ID","MTS","AMOUNT","RATE_DAILY","PERIOD"]
[341360708,1730833842165,-500.0,0.00041999,14]
[341360709,1730833842174,-500.0,0.00041999,14]
[341360710,1730833842184,-500.0,0.00041999,14]
[341360711,1730833842194,-500.0,0.00041999,14]
[341360712,1730833842205,-500.0,0.00041999,14]
[341360713,1730833842215,-500.0,0.00041999,14]
[341360714,1730833842225,-500.0,0.00041999,14]
[341360715,1730833842234,-500.0,0.00041999,14]
[341360716,1730833842245,-500.0,0.00041999,14]
[341360717,1730833842257,-500.0,0.00041999,14]
[341360718,1730833842269,-500.0,0.00041999,14]
[341360719,1730833842281,-500.0,0.00041999,14]
[341360720,1730833842293,-500.0,0.00041999,14]
[341360721,1730833842303,-528.15738873,0.00041999,14]
[341360722,1730833842316,-410841.0665977,0.00042,30]
[341360723,1730833842358,-500.0,0.00041095,14]
[341360724,1730833842369,-500.0,0.00041095,14]
[341360725,1730833842379,-500.0,0.00041095,14]
[341360726,1730833842388,-539.41,0.00041095,14]
[341360727,1730833842398,-19031.09000001,0.00042,30]
[341360728,1730833842411,-636.10059888,0.00042,30]
[341360729,1730833842424,-582.04603108,0.00042,30]
[341360730,1730833842438,-6308.80817322,0.00042,30]
[341360731,1730833842451,-1337.87791221,0.00042,30]
[341360750,1730833843137,-1389.79551427,0.00041448,120]
[341360755,1730833843177,-520.89521451,0.00041448,120]
[341360758,1730833843191,-5849.86386476,0.00042,30]
[341360762,1730833843218,-3814.31215711,0.00042,30]
[341360801,1730833846039,165.0,0.00033,2]
[341360802,1730833846199,-248.69,0.00039,2]
[341360803,1730833846211,-500.0,0.00041973,10]
[341360804,1730833846224,-80090.2771926,0.00042,30]
[341360805,1730833846239,-422.76974132,0.00042,30]
[341360806,1730833846266,-12913.46698207,0.00042,30]
[341360816,1730833846504,-510.5615671,0.00042,30]
[341361173,1730833863330,195.658217,0.00036854,2]
[341361177,1730834184815,180.31811,0.00013973,2]
[341361178,1730834292531,5000.0,0.00020816,2]
[341361179,1730834307747,5000.0,0.00020816,2]
[341361180,1730834323950,2951.18295949,0.00020816,2]
[341361186,1730834826150,-520.83333333,0.00020816,2]
[341361187,1730834826176,-151.0,0.0003,120]
[341361188,1730834826200,-151.0,0.00033342,120]
[341361189,1730834826341,-1098.049837,0.00033463,2]
[341361190,1730834826365,-164.077105,0.00033509,2]
[341361191,1730834826392,-164.077105,0.00033533,2]
[341361192,1730834826415,-909.52559048,0.00033554,2]
[341361196,1730834840127,-456.16387992,0.00033554,2]
[341361197,1730834842084,-153.85021434,0.00033554,2]
[341361198,1730834845138,-1480.46031526,0.00033554,2]
[341361199,1730834845162,-164.077105,0.00033557,2]
[341361200,1730834845184,-164.077105,0.00033581,2]
[341361201,1730834845207,-164.077105,0.00033604,2]
[341361202,1730834845233,-164.077105,0.00033628,2]
[341361203,1730834845257,-164.077105,0.00033652,2]
[341361204,1730834845280,-164.077105,0.00033676,2]
[341361205,1730834845302,-310.0,0.00034146,2]
[341361206,1730834845324,-172.28096,0.00034147,2]
[341361207,1730834845345,-1098.049837,0.00034148,2]
[341361208,1730834845367,-149.45098416,0.00034833,2]
[341361209,1730834848086,-942.36384938,0.00034833,2]
[341361216,1730834950136,-19068.77972037,0.00022,30]
[341361221,1730834952106,-3368.13181016,0.0003398,4]
[341361222,1730834953118,-1570.95171241,0.0003398,4]
[341361223,1730834953139,-6.23500346,0.00034833,2]
[341361224,1730834953163,-512.58636476,0.00036091,120]
[341361225,1730834953188,-151.0,0.00036685,120]
[341361226,1730834965345,235.716575,0.00034521,2]
[341361324,1730835038608,-5714.37413901,0.00033966,5]
[341361326,1730835038620,-1543.90020235,0.00033966,5]
[341361328,1730835038630,-199.999999,0.00033966,2]
[341361330,1730835038642,-322.0,0.00037712,7]
[341361333,1730835038654,-258.28,0.00039,2]
[341361335,1730835038664,-150.0,0.00039,2]
[341361337,1730835038674,-24900.0,0.00039236,2]
[341361339,1730835038683,-176.28177496,0.00039927,2]
[341361341,1730835038692,-350.35858768,0.0004,60]
[341361343,1730835038701,-151.0,0.00040027,120]
[341361345,1730835038710,-176.28177494,0.00040914,28]
[341361347,1730835038720,-327.95858057,0.00041073,5]
[341361349,1730835038733,-437.05161622,0.00041073,5]
[341361351,1730835038745,-500.0,0.00041073,5]
[341361353,1730835038755,-500.0,0.00041073,5]
[341361355,1730835038765,-500.0,0.00041094,2]
[341361357,1730835038774,-999.0,0.00041094,120]
[341361359,1730835038783,-507.57278252,0.00041095,14]
[341361361,1730835038793,-500.0,0.00041095,14]
[341361363,1730835038803,-500.0,0.00041095,14]
[341361365,1730835038814,-500.0,0.00041095,14]
[341361368,1730835038824,-500.0,0.00041095,14]
[341361370,1730835038834,-500.0,0.00041095,14]
[341361372,1730835038844,-501.96018057,0.00041095,14]
[341361374,1730835038854,-514.84187045,0.00041095,14]
[341361376,1730835038863,-508.1639528,0.00041095,14]
[341361378,1730835038874,-500.0,0.00041095,14]
[341361380,1730835038885,-585.40191811,0.00041095,14]
[341361382,1730835038894,-500.0,0.00041095,14]
[341361384,1730835038904,-505.59307054,0.00041095,14]
[341361386,1730835038914,-506.91648772,0.00041095,14]
[341361388,1730835038924,-505.36300835,0.00041095,14]
[341361391,1730835038934,-501.66936704,0.00041095,14]
[341361393,1730835038944,-500.0,0.00041095,14]
[341361395,1730835038953,-500.0,0.00041095,14]
[341361397,1730835038962,-500.0,0.00041095,14]
[341361399,1730835038972,-508.47452684,0.00041095,14]
[341361401,1730835038984,-523.76407451,0.00041095,14]
[341361403,1730835038994,-325.06180817,0.00041095,14]
[341361405,1730835039003,-505.73135792,0.00041095,14]
[341361407,1730835039014,-506.43597864,0.00041095,14]
[341361409,1730835039024,-500.0,0.00041095,14]
[341361411,1730835039033,-500.0,0.00041095,14]
[341361413,1730835039043,-500.0,0.00041095,14]
[341361414,1730835039054,-500.0,0.00041095,14]
[341361415,1730835039064,-500.0,0.00041095,14]
[341361416,1730835039074,-529.52532255,0.00041095,14]
[341361417,1730835039084,-574.16519637,0.00041095,14]
[341361418,1730835039093,-500.0,0.00041095,14]
[341361419,1730835039103,-500.0,0.00041095,14]
[341361420,1730835039112,-507.94176831,0.00041095,14]
[341361421,1730835039121,-372.52263739,0.00041095,14]
[341361422,1730835039131,-500.0,0.00041095,14]
[341361423,1730835039140,-500.0,0.00041095,14]
[341361425,1730835039149,-500.0,0.00041095,14]
[341361427,1730835039158,-500.0,0.00041095,14]
[341361429,1730835039168,-500.0,0.00041095,14]
[341361431,1730835039177,-522.20351646,0.00041095,14]
[341361433,1730835039186,-506.80494997,0.00041095,14]
[341361435,1730835039195,-531.73827452,0.00041095,14]
[341361436,1730835039205,-500.0,0.00041095,14]
[341361439,1730835039215,-503.55059547,0.00041095,14]
[341361441,1730835039226,-500.0,0.00041095,14]
[341361443,1730835039235,-500.0,0.00041095,14]
[341361445,1730835039245,-500.0,0.00041095,14]
[341361447,1730835039260,-501.53042447,0.00041095,14]
[341361450,1730835039270,-500.0,0.00041095,14]
[341361452,1730835039280,-503.22874629,0.00041095,14]
[341361454,1730835039290,-508.14852126,0.00041095,14]
[341361456,1730835039300,-500.0,0.00041095,14]
[341361458,1730835039312,-523.45069619,0.00041095,14]
[341361460,1730835039323,-504.38939481,0.00041095,14]
[341361462,1730835039332,-506.24228222,0.00041095,14]
[341361473,1730835039425,-504.50782688,0.00041095,14]
[341361475,1730835039440,-500.0,0.00041095,14]
[341361478,1730835039451,-500.0,0.00041095,14]
[341361480,1730835039461,-500.0,0.00041095,14]
[341361482,1730835039470,-500.0,0.00041095,14]
[341361484,1730835039480,-518.02254518,0.00041095,14]
[341361486,1730835039489,-512.60068679,0.00041095,14]
[341361488,1730835039499,-500.98375059,0.00041095,14]
[341361490,1730835039509,-501.07237061,0.00041095,14]
[341361492,1730835039518,-500.0,0.00041095,14]
[341361494,1730835039527,-500.0,0.00041095,14]
[341361496,1730835039538,-505.10826291,0.00041095,14]
[341361498,1730835039547,-500.0,0.00041095,14]
[341361500,1730835039557,-502.67302397,0.00041095,14]
[341361501,1730835039565,-500.0,0.00041095,7]
[341361504,1730835039575,-502.9004759,0.00041095,14]
[341361506,1730835039585,-509.91823727,0.00041095,14]
[341361508,1730835039596,-500.0,0.00041095,14]
[341361510,1730835039608,-509.56870581,0.00041095,14]
[341361512,1730835039618,-500.0,0.00041095,14]
[341361514,1730835039628,-500.0,0.00041095,14]
[341361516,1730835039637,-435.85726154,0.00041095,14]
[341361518,1730835039647,-500.0,0.00041095,14]
[341361520,1730835039659,-500.0,0.00041095,14]
[341361522,1730835039669,-506.28255789,0.00041095,14]
[341361524,1730835039678,-525.84708471,0.00041095,14]
[341361526,1730835039689,-500.0,0.00041095,14]
[341361529,1730835039699,-500.0,0.00041095,14]
[341361531,1730835039708,-500.0,0.00041095,14]
[341361533,1730835039717,-501.8342484,0.00041095,14]
[341361535,1730835039728,-500.0,0.00041095,14]
[341361537,1730835039737,-500.0,0.00041095,14]
[341361539,1730835039746,-500.0,0.00041095,14]
[341361541,1730835039755,-500.0,0.00041095,14]
[341361543,1730835039765,-500.0,0.00041095,14]
[341361545,1730835039775,-500.0,0.00041095,14]
[341361546,1730835039785,-500.0,0.00041095,14]
[341361548,1730835039795,-530.023277,0.00041095,14]
[341361549,1730835039804,-500.0,0.00041095,14]
[341361551,1730835039816,-500.0,0.00041095,14]
[341361553,1730835039825,-516.05753601,0.00041095,14]
[341361554,1730835039834,-515.23362117,0.00041095,14]
[341361556,1730835039844,-288.43515908,0.00041095,14]
[341361557,1730835039853,-502.65966867,0.00041095,14]
[341361559,1730835039863,-502.70236609,0.00041095,14]
[341361560,1730835039872,-500.0,0.00041095,14]
[341361562,1730835039881,-523.55046625,0.00041095,14]
[341361564,1730835039891,-510.05901299,0.00041095,14]
[341361565,1730835039901,-500.0,0.00041095,14]
[341361567,1730835039910,-187.18538441,0.00041095,14]
[341361568,1730835039919,-500.0,0.00041095,7]
[341361570,1730835039929,-500.0,0.00041095,14]
[341361572,1730835039938,-500.0,0.00041095,14]
[341361573,1730835039948,-507.16075426,0.00041095,14]
[341361575,1730835039958,-515.9757387,0.00041095,14]
[341361576,1730835039967,-500.0,0.00041095,5]
[341361578,1730835039976,-500.0,0.00041095,14]
[341361579,1730835039985,-263.69592161,0.00041095,14]
[341361581,1730835039995,-500.0,0.00041095,14]
[341361582,1730835040006,-506.56757609,0.00041095,14]
[341361584,1730835040015,-512.75098867,0.00041095,14]
[341361586,1730835040024,-500.0,0.00041095,14]
[341361587,1730835040033,-517.97887837,0.00041095,14]
[341361589,1730835040042,-512.31636041,0.00041095,14]
[341361591,1730835040052,-508.1523802,0.00041095,14]
[341361592,1730835040065,-500.0,0.00041095,14]
[341361594,1730835040074,-500.0,0.00041095,14]
[341361595,1730835040083,-500.0,0.00041095,14]
[341361597,1730835040093,-510.81528325,0.00041095,14]
[341361599,1730835040102,-509.06691694,0.00041095,14]
[341361600,1730835040112,-500.0,0.00041095,14]
[341361602,1730835040122,-506.54224671,0.00041095,14]
[341361604,1730835040131,-514.12348022,0.00041095,14]
[341361605,1730835040140,-344.54970894,0.00041095,14]
[341361607,1730835040150,-500.0,0.00041095,14]
[341361609,1730835040160,-300.0,0.00041095,14]
[341361610,1730835040170,-180.16609081,0.00041095,14]
[341361612,1730835040180,-500.0,0.00041095,14]
[341361613,1730835040190,-507.7027929,0.00041095,14]
[341361615,1730835040201,-500.0,0.00041095,14]
[341361617,1730835040210,-500.0,0.00041095,14]
[341361618,1730835040220,-500.0,0.00041095,14]
[341361620,1730835040230,-500.0,0.00041095,14]
[341361622,1730835040239,-500.0,0.00041095,14]
[341361623,1730835040249,-500.0,0.00041095,14]
[341361625,1730835040258,-500.0,0.00041095,14]
[341361627,1730835040268,-500.0,0.00041095,14]
[341361628,1730835040277,-500.0,0.00041095,14]
[341361630,1730835040287,-500.0,0.00041095,14]
[341361632,1730835040296,-500.0,0.00041095,14]
[341361633,1730835040306,-500.0,0.00041095,14]
[341361635,1730835040320,-500.0,0.00041095,14]
[341361637,1730835040332,-500.0,0.00041095,14]
[341361638,1730835040342,-500.0,0.00041095,14]
[341361640,1730835040351,-500.0,0.00041095,14]
[341361642,1730835040362,-500.0,0.00041095,14]
[341361643,1730835040371,-500.0,0.00041095,14]
[341361645,1730835040381,-500.0,0.00041095,14]
[341361647,1730835040391,-500.0,0.00041095,14]
[341361648,1730835040400,-500.0,0.00041095,14]
[341361650,1730835040410,-500.0,0.00041095,14]
[341361651,1730835040420,-503.40638588,0.00041095,14]
[341361653,1730835040430,-501.5446585,0.00041095,14]
[341361655,1730835040440,-500.77028733,0.00041095,14]
[341361656,1730835040449,-501.3390535,0.00041095,14]
[341361658,1730835040460,-500.0,0.00041095,14]
[341361659,1730835040470,-500.0,0.00041095,14]
[341361661,1730835040480,-500.0,0.00041095,14]
[341361663,1730835040490,-500.0,0.00041095,14]
[341361664,1730835040500,-500.0,0.00041095,14]
[341361666,1730835040510,-558.33770051,0.00041095,14]
[341361668,1730835040519,-354.51537615,0.00041095,14]
[341361669,1730835040528,-500.0,0.00041095,14]
[341361671,1730835040538,-500.0,0.00041095,14]
[341361673,1730835040547,-504.54110512,0.00041095,14]
[341361674,1730835040559,-500.0,0.00041095,14]
[341361676,1730835040570,-500.0,0.00041095,14]
[341361678,1730835040579,-606.79191228,0.00041095,14]
[341361679,1730835040589,-500.0,0.00041095,14]
[341361681,1730835040598,-510.42187137,0.00041095,14]
[341361682,1730835040607,-505.55887462,0.00041095,14]
[341361684,1730835040616,-500.0,0.00041095,14]
[341361686,1730835040626,-500.0,0.00041095,14]
[341361687,1730835040635,-500.0,0.00041095,14]
[341361689,1730835040647,-511.2470745,0.00041095,14]
[341361691,1730835040657,-500.0,0.00041095,14]
[341361693,1730835040666,-500.0,0.00041095,14]
[341361694,1730835040675,-500.0,0.00041095,14]
[341361696,1730835040684,-506.10672077,0.00041095,14]
[341361697,1730835040694,-504.27287054,0.00041095,14]
[341361699,1730835040703,-500.0,0.00041095,14]
[341361701,1730835040712,-500.0,0.00041095,14]
[341361702,1730835040723,-500.0,0.00041095,14]
[341361704,1730835040732,-503.92537894,0.00041095,14]
[341361706,1730835040741,-504.70466135,0.00041095,14]
[341361707,1730835040750,-502.02890014,0.00041095,14]
[341361709,1730835040759,-502.11619008,0.00041095,14]
[341361710,1730835040768,-502.33342866,0.00041095,14]
[341361712,1730835040778,-500.0,0.00041095,14]
[341361714,1730835040787,-410.0733229,0.00041095,14]
[341361715,1730835040796,-525.64228532,0.00041095,14]
[341361717,1730835040806,-500.0,0.00041095,14]
[341361719,1730835040817,-500.0,0.00041095,14]
[341361721,1730835040826,-500.0,0.00041095,14]
[341361722,1730835040836,-500.0,0.00041095,14]
[341361724,1730835040845,-500.0,0.00041095,14]
[341361725,1730835040855,-507.42442783,0.00041095,14]
[341361726,1730835040864,-573.23846542,0.00041095,14]
[341361727,1730835040873,-427.37158506,0.00041095,14]
[341361728,1730835040882,-500.0,0.00041095,14]
[341361729,1730835040891,-500.0,0.00041095,14]
[341361730,1730835040900,-513.58732317,0.00041095,14]
[341361731,1730835040909,-500.0,0.00041095,14]
[341361732,1730835040918,-500.0,0.00041095,14]
[341361733,1730835040928,-506.67717453,0.00041095,14]
[341361734,1730835040937,-158.77191366,0.00041095,14]
[341361735,1730835040946,-500.0,0.00041095,14]
[341361736,1730835040956,-500.0,0.00041095,14]
[341361737,1730835040965,-500.0,0.00041095,14]
[341361738,1730835040974,-500.0,0.00041095,14]
[341361739,1730835040983,-500.0,0.00041095,14]
[341361740,1730835040992,-500.0,0.00041095,14]
[341361742,1730835041001,-500.0,0.00041095,14]
[341361744,1730835041011,-500.0,0.00041095,14]
[341361746,1730835041019,-501.58794919,0.00041095,14]
[341361748,1730835041028,-500.0,0.00041095,10]
[341361750,1730835041037,-500.0,0.00041095,14]
[341361752,1730835041046,-500.0,0.00041095,14]
[341361754,1730835041055,-500.0,0.00041095,14]
[341361756,1730835041068,-500.0,0.00041095,14]
[341361758,1730835041078,-500.0,0.00041095,14]
[341361760,1730835041087,-500.0,0.00041095,14]
[341361762,1730835041096,-500.0,0.00041095,14]
[341361764,1730835041105,-500.0,0.00041095,14]
[341361766,1730835041115,-500.0,0.00041095,14]
[341361768,1730835041124,-500.0,0.00041095,14]
[341361770,1730835041133,-500.0,0.00041095,14]
[341361772,1730835041143,-500.0,0.00041095,14]
[341361774,1730835041152,-500.0,0.00041095,14]
[341361776,1730835041161,-500.0,0.00041095,14]
[341361778,1730835041171,-500.0,0.00041095,14]
[341361780,1730835041180,-500.0,0.00041095,14]
[341361782,1730835041190,-250.0,0.00041095,14]
[341361784,1730835041199,-500.0,0.00041095,14]
[341361786,1730835041209,-500.0,0.00041095,14]
[341361788,1730835041219,-501.3037875,0.00041095,14]
[341361790,1730835041228,-500.0,0.00041095,14]
[341361792,1730835041238,-500.0,0.00041095,14]
[341361794,1730835041248,-500.0,0.00041095,14]
[341361796,1730835041257,-500.0,0.00041095,14]
[341361798,1730835041268,-500.0,0.00041095,14]
[341361800,1730835041278,-500.0,0.00041095,14]
[341361802,1730835041287,-500.0,0.00041095,14]
[341361804,1730835041298,-500.0,0.00041095,14]
[341361806,1730835041310,-500.0,0.00041095,14]
[341361808,1730835041320,-500.0,0.00041095,14]
[341361810,1730835041330,-500.90247446,0.00041095,14]
[341361812,1730835041341,-500.0,0.00041095,14]
[341361814,1730835041350,-500.0,0.00041095,14]
[341361816,1730835041360,-500.0,0.00041095,14]
[341361818,1730835041369,-500.0,0.00041095,14]
[341361820,1730835041379,-500.0,0.00041095,14]
[341361823,1730835041389,-500.0,0.00041095,14]
[341361825,1730835041398,-203.68,0.00041095,14]
[341361827,1730835041407,-2812.85,0.00041095,14]
[341361828,1730835041416,-2812.85,0.00041095,14]
[341361831,1730835041425,-2812.85,0.00041095,14]
[341361833,1730835041434,-2812.85,0.00041095,14]
[341361835,1730835041443,-2812.85,0.00041095,14]
[341361837,1730835041453,-2812.85,0.00041095,14]
[341361839,1730835041462,-2812.85,0.00041095,14]
[341361844,1730835041472,-2812.85,0.00041095,14]
[341361845,1730835041547,-2812.85,0.00041095,14]
[341361846,1730835041556,-517.99046643,0.00041095,14]
[341361847,1730835041570,-500.0,0.00041095,14]
[341361848,1730835041579,-500.0,0.00041095,14]
[341361849,1730835041590,-500.0,0.00041095,14]
[341361850,1730835041600,-500.0,0.00041095,14]
[341361851,1730835041611,-565.35,0.00041095,14]
[341361852,1730835041621,-500.0,0.00041095,14]
[341361853,1730835041631,-500.0,0.00041095,14]
[341361854,1730835041641,-500.0,0.00041095,14]
[341361855,1730835041651,-240.27301148,0.00041095,14]
[341361856,1730835041662,-500.0,0.00041095,14]
[341361857,1730835041673,-500.0,0.00041095,14]
[341361858,1730835041682,-500.0,0.00041095,14]
[341361859,1730835041692,-500.0,0.00041095,14]
[341361860,1730835041703,-569.44010916,0.00041095,14]
[341361861,1730835041713,-500.0,0.00041095,14]
[341361862,1730835041724,-500.0,0.00041095,14]
[341361863,1730835041736,-500.0,0.00041095,14]
[341361864,1730835041746,-423.05507391,0.00041095,14]
[341361865,1730835041756,-500.0,0.00041095,14]
[341361866,1730835041765,-500.0,0.00041095,14]
[341361867,1730835041774,-500.0,0.00041095,14]
[341361868,1730835041783,-500.0,0.00041095,14]
[341361869,1730835041793,-500.0,0.00041095,14]
[341361870,1730835041802,-500.0,0.00041095,14]
[341361871,1730835041814,-500.0,0.00041095,14]
[341361872,1730835041824,-500.0,0.00041095,14]
[341361873,1730835041833,-500.0,0.00041095,14]
[341361874,1730835041843,-500.0,0.00041095,14]
[341361875,1730835041853,-500.0,0.00041095,14]
[341361876,1730835041863,-500.0,0.00041095,14]
[341361877,1730835041873,-500.0,0.00041095,14]
[341361878,1730835041883,-500.0,0.00041095,14]
[341361879,1730835041894,-500.0,0.00041095,14]
[341361880,1730835041904,-500.0,0.00041095,14]
[341361881,1730835041913,-500.0,0.00041095,14]
[341361882,1730835041922,-637.05340763,0.00041095,14]
[341361883,1730835041932,-500.0,0.00041095,14]
[341361884,1730835041941,-509.59541064,0.00041095,14]
[341361885,1730835041951,-500.0,0.00041095,14]
[341361886,1730835041963,-500.0,0.00041095,14]
[341361887,1730835041972,-500.0,0.00041095,14]
[341361888,1730835041982,-500.0,0.00041095,14]
[341361889,1730835041991,-500.0,0.00041095,14]
[341361890,1730835042001,-500.0,0.00041095,14]
[341361891,1730835042011,-500.0,0.00041095,14]
[341361892,1730835042020,-500.0,0.00041095,14]
[341361893,1730835042030,-500.0,0.00041095,14]
[341361894,1730835042040,-500.0,0.00041095,14]
[341361895,1730835042050,-500.0,0.00041095,14]
[341361896,1730835042061,-500.0,0.00041095,14]
[341361897,1730835042070,-500.0,0.00041095,14]
[341361898,1730835042080,-500.0,0.00041095,14]
[341361900,1730835042089,-500.0,0.00041095,14]
[341361902,1730835042099,-500.0,0.00041095,14]
[341361903,1730835042109,-500.0,0.00041095,14]
[341361904,1730835042119,-500.69750789,0.00041095,14]
[341361905,1730835042130,-500.0,0.00041095,14]
[341361906,1730835042139,-500.0,0.00041095,14]
[341361907,1730835042149,-500.0,0.00041095,14]
[341361908,1730835042158,-570.04,0.00041095,14]
[341361909,1730835042168,-570.04,0.00041095,14]
[341361910,1730835042178,-570.04,0.00041095,14]
[341361911,1730835042188,-570.04,0.00041095,14]
[341361912,1730835042197,-570.04,0.00041095,14]
[341361913,1730835042207,-570.04,0.00041095,14]
[341361914,1730835042216,-570.04,0.00041095,14]
[341361915,1730835042227,-500.0,0.00041095,14]
[341361916,1730835042236,-500.0,0.00041095,14]
[341361917,1730835042245,-500.0,0.00041095,14]
[341361918,1730835042254,-500.0,0.00041095,14]
[341361919,1730835042264,-500.0,0.00041095,14]
[341361920,1730835042273,-500.0,0.00041095,14]
[341361921,1730835042283,-500.0,0.00041095,14]
[341361922,1730835042294,-500.0,0.00041095,14]
[341361923,1730835042303,-500.0,0.00041095,14]
[341361924,1730835042315,-500.0,0.00041095,14]
[341361925,1730835042324,-500.0,0.00041095,14]
[341361926,1730835042333,-500.0,0.00041095,14]
[341361927,1730835042343,-500.0,0.00041095,14]
[341361928,1730835042353,-500.0,0.00041095,14]
[341361929,1730835042363,-500.0,0.00041095,14]
[341361930,1730835042372,-500.0,0.00041095,14]
[341361931,1730835042381,-500.0,0.00041095,14]
[341361932,1730835042390,-500.0,0.00041095,14]
[341361933,1730835042400,-500.0,0.00041095,14]
[341361934,1730835042409,-500.0,0.00041095,14]
[341361935,1730835042419,-500.0,0.00041095,14]
[341361936,1730835042429,-500.0,0.00041095,14]
[341361937,1730835042439,-500.0,0.00041095,14]
[341361938,1730835042448,-500.0,0.00041095,14]
[341361939,1730835042458,-500.0,0.00041095,14]
[341361940,1730835042468,-500.0,0.00041095,14]
[341361941,1730835042477,-500.0,0.00041095,14]
[341361942,1730835042487,-500.0,0.00041095,14]
[341361943,1730835042496,-500.0,0.00041095,14]
[341361944,1730835042506,-500.0,0.00041095,14]
[341361945,1730835042515,-500.0,0.00041095,14]
[341361946,1730835042525,-500.0,0.00041095,14]
[341361947,1730835042534,-500.0,0.00041095,14]
[341361948,1730835042543,-500.0,0.00041095,14]
[341361949,1730835042553,-500.0,0.00041095,14]
[341361950,1730835042565,-500.0,0.00041095,14]
[341361951,1730835042574,-500.0,0.00041095,14]
[341361952,1730835042583,-500.0,0.00041095,14]
[341361953,1730835042594,-500.0,0.00041095,14]
[341361954,1730835042603,-500.0,0.00041095,14]
[341361955,1730835042612,-500.0,0.00041095,14]
[341361956,1730835042622,-500.0,0.00041095,14]
[341361957,1730835042631,-500.0,0.00041095,14]
[341361958,1730835042641,-500.0,0.00041095,14]
[341361959,1730835042650,-500.0,0.00041095,14]
[341361960,1730835042663,-500.0,0.00041095,14]
[341361961,1730835042673,-500.0,0.00041095,14]
[341361962,1730835042683,-500.0,0.00041095,14]
[341361963,1730835042693,-500.0,0.00041095,14]
[341361964,1730835042702,-500.0,0.00041095,14]
[341361965,1730835042712,-500.0,0.00041095,14]
[341361966,1730835042723,-500.0,0.00041095,14]
[341361967,1730835042738,-500.0,0.00041095,14]
[341361968,1730835042748,-500.0,0.00041095,14]
[341361969,1730835042757,-325.06898209,0.00041095,14]
[341361970,1730835042766,-500.0,0.00041095,120]
[341361971,1730835042776,-500.0,0.00041095,120]
[341361972,1730835042785,-500.0,0.00041095,120]
[341361973,1730835042794,-500.0,0.00041095,120]
[341361975,1730835042804,-500.0,0.00041095,120]
[341361977,1730835042817,-500.0,0.00041095,120]
[341361979,1730835042827,-516.0668,0.00041095,120]
[341361980,1730835042837,-500.0,0.00041095,14]
[341361981,1730835042847,-500.0,0.00041095,14]
[341361983,1730835042856,-500.0,0.00041095,14]
[341361985,1730835042865,-631.23924294,0.00041095,14]
[341361987,1730835042875,-500.0,0.00041095,14]
[341361988,1730835042883,-500.0,0.00041095,14]
[341361989,1730835042892,-500.0,0.00041095,14]
[341361990,1730835042902,-500.0,0.00041095,14]
[341361991,1730835042912,-500.0,0.00041095,14]
[341361992,1730835042921,-500.0,0.00041095,14]
[341361993,1730835042931,-500.0,0.00041095,14]
[341361994,1730835042940,-500.0,0.00041095,14]
[341361995,1730835042949,-500.0,0.00041095,14]
[341361996,1730835042958,-500.0,0.00041095,14]
[341361997,1730835042968,-500.0,0.00041095,14]
[341361998,1730835042977,-500.0,0.00041095,14]
[341361999,1730835042987,-500.0,0.00041095,14]